fUSD/lending_fUSD_20250105
["ID","MTS","AMOUNT","RATE_DAILY","PERIOD"]
[347774485,1736098254125,-1103.19,9.959e-05,2]
[347774486,1736098254135,-548.59,9.959e-05,2]
[347774487,1736098254145,-500.0,9.959e-05,2]
[347774488,1736098254155,-500.0,9.959e-05,2]
[347774489,1736098254165,-500.0,9.959e-05,2]
[347774490,1736098254175,-500.0,9.959e-05,2]
[347774491,1736098254185,-500.0,9.959e-05,2]
[347774492,1736098254195,-500.0,9.959e-05,2]
[347774493,1736098254205,-500.0,9.959e-05,2]
[347774494,1736098254215,-395.8664817,9.959e-05,2]
[347774495,1736098254224,-551.87,9.959e-05,2]
[347774496,1736098254234,-630.14,9.959e-05,2]
[347774497,1736098254244,-500.0,9.959e-05,2]
[347774498,1736098254253,-688.62,9.959e-05,2]
[347774499,1736098254263,-215.98496005,9.959e-05,2]
[347774500,1736098254272,-500.0,9.959e-05,2]
[347774501,1736098254282,-747.39,9.959e-05,2]
[347774502,1736098254292,-500.0,9.959e-05,2]
[347774503,1736098254301,-575.03,9.959e-05,2]
[347774504,1736098254311,-500.0,9.959e-05,2]
[347774505,1736098254320,-500.0,9.959e-05,2]
[347774506,1736098254329,-500.0,9.959e-05,2]
[347774507,1736098254341,-684.88,9.959e-05,2]
[347774508,1736098254351,-596.77219749,9.959e-05,2]
[347774509,1736098254362,-707.71,9.959e-05,2]
[347774510,1736098254372,-1326.02,9.959e-05,2]
[347774511,1736098254382,-500.0,9.959e-05,2]
[347774512,1736098254392,-706.33,9.959e-05,2]
[347774513,1736098254402,-500.0,9.959e-05,2]
[347774514,1736098254412,-505.14,9.959e-05,2]
[347774515,1736098254421,-576.65721789,9.959e-05,2]
[347774516,1736098254431,-500.0,9.959e-05,2]
[347774517,1736098254441,-1393.88,9.959e-05,2]
[347774518,1736098254451,-569.29,9.959e-05,2]
[347774519,1736098254462,-500.0,9.959e-05,2]
[347774520,1736098254472,-500.0,9.959e-05,2]
[347774521,1736098254482,-500.0,9.959e-05,2]
[347774522,1736098254492,-1622.54,9.959e-05,2]
[347774523,1736098254502,-500.0,9.96e-05,2]
[347774524,1736098254511,-157200.41858225,9.972e-05,2]
[347774525,1736098254522,-7440.0,9.973e-05,2]
[347774526,1736098254531,-504.9994691,9.973e-05,2]
[347774527,1736098254542,-152.02248184,9.973e-05,2]
[347774528,1736098254552,-500.0,9.973e-05,2]
[347774529,1736098254562,-2259.02882011,0.0001,2]
[347774530,1736098254572,-433.83,0.0001,2]
[347774531,1736098254582,-8648090.14816845,0.0001,2]
[347774532,1736098255160,-500.0,8.588e-05,2]
[347774533,1736098255170,-500.0,8.589e-05,2]
[347774534,1736098255180,-500.0,8.862e-05,2]
[347774535,1736098255191,-386.46,8.863e-05,2]
[347774536,1736098255201,-1007.76731292,0.0001,2]
[347774537,1736098255221,-301.37689251,0.0001,2]
[347774538,1736098255238,-270.16312166,0.0001,2]
[347774539,1736098255249,-144725.35521269,0.0001,2]
[347774540,1736098255261,-103885.45503495,0.0001,2]
[347774541,1736098255279,-5130.05782566,0.0001,2]
[347774542,1736098255290,-2538.26073241,0.0001,2]
[347774543,1736098255346,-2857.5,0.0001,2]
[347774544,1736098255537,-460.47244121,0.0001,2]
[347774545,1736098255779,-500.0,8.588e-05,2]
[347774546,1736098255788,-500.0,8.589e-05,2]
[347774547,1736098255797,-500.0,8.762e-05,2]
[347774548,1736098255808,-500.0,8.862e-05,2]
[347774549,1736098255818,-1203578.88652171,0.0001,2]
[347774550,1736098255843,-514.80002194,0.0001,2]
[347774551,1736098255857,-1151.15527233,0.0001,2]
[347774552,1736098255874,-3264.7500002,0.0001,2]
[347774553,1736098256184,-500.0,8.588e-05,2]
[347774554,1736098256194,-57.6099985,8.862e-05,2]
[347774555,1736098256205,-442.3900015,8.862e-05,2]
[347774556,1736098256214,-500.0,8.863e-05,2]
[347774557,1736098256224,-500.0,8.863e-05,2]
[347774558,1736098256233,-500.0,9.036e-05,2]
[347774559,1736098256242,-221.40202319,9.136e-05,2]
[347774560,1736098256251,-1022.762,9.767e-05,2]
[347774561,1736098256261,-155106.32638952,0.0001,2]
[347774562,1736098256272,-38516.91216517,0.0001,2]
[347774563,1736098256290,-11610.1778922,0.0001,2]
[347774564,1736098256301,-521.56177382,0.0001,2]
[347774774,1736099432374,-1925.86,8.219e-05,2]
[347774775,1736099432385,-250.0,8.246e-05,2]
[347774776,1736099432396,-411.48,8.405e-05,2]
[347774777,1736099432406,-285.18425579,8.489e-05,2]
[347774778,1736099432417,-1854.99294421,8.489e-05,2]
[347774779,1736099432427,-500.0,8.492e-05,2]
[347774780,1736099432437,-257.51425592,8.492e-05,2]
[347774781,1736099432601,-242.48574408,8.492e-05,2]
[347774782,1736099432611,-711.27968827,8.492e-05,2]
[347774783,1736099432623,-370.22031173,8.492e-05,2]
[347774784,1736099432634,-1059.04,8.492e-05,2]
[347774785,1736099432645,-1107.79,8.492e-05,2]
[347774786,1736099432654,-1534.97308714,8.492e-05,2]
[347774787,1736099432666,-1086.05691286,8.492e-05,2]
[347774788,1736099432675,-500.0,8.492e-05,2]
[347774789,1736099432685,-500.0,8.492e-05,2]
[347774790,1736099432696,-616.85,8.492e-05,2]
[347774791,1736099432705,-1460.73,8.492e-05,2]
[347774792,1736099432715,-500.0,8.492e-05,2]
[347774793,1736099432725,-530.93,8.492e-05,2]
[347774794,1736099432734,-711.48,8.492e-05,2]
[347774795,1736099432743,-668.0,8.492e-05,2]
[347774796,1736099432754,-849.33,8.492e-05,2]
[347774797,1736099432764,-1000.0,8.492e-05,2]
[347774798,1736099432773,-500.0,8.492e-05,2]
[347774799,1736099432783,-500.0,8.492e-05,2]
[347774800,1736099432792,-1007.94,8.492e-05,2]
[347774801,1736099432801,-1101.56,8.492e-05,2]
[347774802,1736099432811,-500.0,8.588e-05,2]
[347774803,1736099432821,-500.0,8.588e-05,2]
[347774804,1736099432830,-297.62971535,8.588e-05,2]
[347774805,1736099432840,-500.0,8.588e-05,2]
[347774807,1736099432849,-500.0,8.588e-05,2]
[347774809,1736099432858,-500.0,8.588e-05,2]
[347774811,1736099432868,-500.0,8.588e-05,2]
[347774812,1736099432878,-500.0,8.588e-05,2]
[347774813,1736099432888,-500.0,8.588e-05,2]
[347774814,1736099432898,-500.0,8.588e-05,2]
[347774815,1736099432907,-569.88488795,8.588e-05,2]
[347774817,1736099432916,-500.0,8.588e-05,2]
[347774819,1736099432926,-500.0,8.588e-05,2]
[347774821,1736099432935,-500.0,8.588e-05,2]
[347774823,1736099432944,-500.0,8.588e-05,2]
[347774825,1736099432954,-500.0,8.588e-05,2]
[347774827,1736099432963,-500.0,8.588e-05,2]
[347774829,1736099432972,-500.0,8.588e-05,2]
[347774831,1736099432981,-500.0,8.588e-05,2]
[347774833,1736099432990,-500.0,8.588e-05,2]
[347774835,1736099433000,-500.0,8.588e-05,2]
[347774837,1736099433009,-500.0,8.588e-05,2]
[347774839,1736099433019,-500.0,8.588e-05,2]
[347774841,1736099433028,-500.0,8.588e-05,2]
[347774843,1736099433037,-500.0,8.588e-05,2]
[347774845,1736099433047,-500.0,8.588e-05,2]
[347774848,1736099433056,-500.0,8.588e-05,2]
[347774851,1736099433065,-500.0,8.588e-05,2]
[347774853,1736099433075,-500.0,8.588e-05,2]
[347774855,1736099433084,-72.35770477,8.588e-05,2]
[347774857,1736099433096,-427.64229523,8.588e-05,2]
[347774859,1736099433105,-150.70301073,8.588e-05,2]
[347774861,1736099433115,-525.26,8.588e-05,2]
[347774863,1736099433125,-500.0,8.588e-05,2]
[347774865,1736099433135,-500.0,8.588e-05,2]
[347774867,1736099433144,-500.0,8.588e-05,2]
[347774869,1736099433154,-500.0,8.588e-05,2]
[347774871,1736099433163,-500.0,8.588e-05,2]
[347774873,1736099433173,-500.0,8.588e-05,2]
[347774875,1736099433182,-500.0,8.588e-05,2]
[347774878,1736099433197,-500.0,8.588e-05,2]
[347774880,1736099433207,-179.99,8.588e-05,2]
[347774882,1736099433216,-500.0,8.588e-05,2]
[347774884,1736099433225,-500.0,8.588e-05,2]
[347774886,1736099433234,-505.47469404,8.588e-05,2]
[347774888,1736099433246,-138.30487649,8.588e-05,2]
[347774890,1736099433255,-500.0,8.588e-05,2]
[347774892,1736099433265,-500.0,8.588e-05,2]
[347774894,1736099433275,-500.0,8.588e-05,2]
[347774896,1736099433284,-181.41,8.588e-05,2]
[347774898,1736099433294,-500.0,8.588e-05,2]
[347774900,1736099433303,-500.0,8.588e-05,2]
[347774902,1736099433313,-251.99012351,8.589e-05,2]
[347774904,1736099433324,-259.01987649,8.589e-05,2]
[347774906,1736099433333,-156.995149,8.589e-05,2]
[347774908,1736099433343,-746.88,8.589e-05,2]
[347774910,1736099433352,-500.0,8.589e-05,2]
[347774912,1736099433362,-500.0,8.589e-05,2]
[347774914,1736099433372,-701.13497465,8.589e-05,2]
[347774916,1736099433383,-624.57502535,8.589e-05,2]
[347774918,1736099433392,-682.39,8.589e-05,2]
[347774920,1736099433403,-2092.54,8.589e-05,2]
[347774922,1736099433414,-41.94497465,8.589e-05,2]
[347774924,1736099433425,-1381.39502535,8.589e-05,2]
[347774926,1736099433435,-1714.75897465,8.589e-05,2]
[347774930,1736099433460,-148.15102535,8.589e-05,2]
[347774932,1736099433472,-500.0,8.589e-05,2]
[347774934,1736099433482,-500.0,8.589e-05,2]
[347774936,1736099433491,-1144.28142766,8.589e-05,2]
[347774939,1736099433519,-248.53857234,8.589e-05,2]
[347774940,1736099433528,-374.90149502,8.589e-05,2]
[347774942,1736099433540,-214.72850498,8.589e-05,2]
[347774944,1736099433550,-549.22,8.589e-05,2]
[347774946,1736099433560,-1073.55,8.589e-05,2]
[347774948,1736099433569,-127.16149502,8.589e-05,2]
[347775147,1736099438343,-372.83850498,8.589e-05,2]
[347775148,1736099438352,-605.81,8.589e-05,2]
[347775149,1736099438362,-1177.46,8.589e-05,2]
[347775150,1736099438372,-641.24,8.589e-05,2]
[347775151,1736099438381,-928.96,8.589e-05,2]
[347775153,1736099438390,-688.04,8.589e-05,2]
[347775155,1736099438399,-500.0,8.589e-05,2]
[347775157,1736099438408,-527.35,8.589e-05,2]
[347775158,1736099438418,-721.42,8.589e-05,2]
[347775160,1736099438427,-721.42,8.589e-05,2]
[347775161,1736099438437,-730.88,8.589e-05,2]
[347775162,1736099438446,-1077.7,8.589e-05,2]
[347775163,1736099438456,-571.01,8.589e-05,2]
[347775164,1736099438468,-500.0,8.589e-05,2]
[347775165,1736099438477,-717.4464,8.666e-05,2]
[347775166,1736099438487,-5046.0713,8.763e-05,2]
[347775167,1736099438496,-500.0,8.766e-05,2]
[347775168,1736099438507,-500.0,8.766e-05,2]
[347775169,1736099438515,-1081.5,8.766e-05,2]
[347775170,1736099438524,-1059.04,8.766e-05,2]
[347775171,1736099438534,-1107.79,8.766e-05,2]
[347775172,1736099438545,-2621.03,8.766e-05,2]
[347775173,1736099438554,-500.0,8.766e-05,2]
[347775174,1736099438563,-500.0,8.766e-05,2]
[347775175,1736099438573,-616.85,8.766e-05,2]
[347775176,1736099438582,-1460.73,8.766e-05,2]
[347775177,1736099438592,-500.0,8.766e-05,2]
[347775178,1736099438601,-530.93,8.766e-05,2]
[347775179,1736099438611,-711.48,8.766e-05,2]
[347775181,1736099438620,-668.0,8.766e-05,2]
[347775182,1736099438629,-849.33,8.766e-05,2]
[347775183,1736099438639,-1087.28,8.766e-05,2]
[347775184,1736099438648,-500.0,8.766e-05,2]
[347775185,1736099438657,-500.0,8.766e-05,2]
[347775186,1736099438667,-1007.94,8.766e-05,2]
[347775188,1736099438676,-1101.56,8.766e-05,2]
[347775190,1736099438685,-2028.66253584,8.767e-05,2]
[347775197,1736099438743,-1156.49746416,8.767e-05,2]
[347775199,1736099438753,-250.0,8.794e-05,2]
[347775201,1736099438762,-352.79342776,8.862e-05,2]
[347775203,1736099438771,-234.50554973,8.862e-05,2]
[347775205,1736099438780,-552.82,8.862e-05,2]
[347775207,1736099438790,-500.0,8.862e-05,2]
[347775209,1736099438799,-500.0,8.862e-05,2]
[347775211,1736099438808,-500.0,8.862e-05,2]
[347775213,1736099438817,-500.0,8.862e-05,2]
[347775215,1736099438827,-500.0,8.862e-05,2]
[347775217,1736099438836,-500.0,8.862e-05,2]
[347775219,1736099438846,-474.04,8.862e-05,2]
[347775220,1736099438855,-500.0,8.862e-05,2]
[347775222,1736099438864,-500.0,8.862e-05,2]
[347775224,1736099438873,-500.0,8.862e-05,2]
[347775226,1736099438882,-204.0351724,8.862e-05,2]
[347775251,1736099440402,-321.2248276,8.862e-05,2]
[347775252,1736099440412,-500.0,8.862e-05,2]
[347775253,1736099440422,-500.0,8.862e-05,2]
[347775254,1736099440432,-134.0301724,8.862e-05,2]
[347775255,1736099440444,-365.9698276,8.862e-05,2]
[347775256,1736099440454,-500.0,8.862e-05,2]
[347775257,1736099440466,-535.66434181,8.862e-05,2]
[347775258,1736099440475,-500.0,8.862e-05,2]
[347775259,1736099440486,-500.0,8.862e-05,2]
[347775260,1736099440496,-500.0,8.862e-05,2]
[347775261,1736099440508,-500.0,8.862e-05,2]
[347775262,1736099440518,-500.0,8.862e-05,2]
[347775263,1736099440527,-500.0,8.862e-05,2]
[347775264,1736099440536,-500.0,8.862e-05,2]
[347775265,1736099440545,-500.0,8.862e-05,2]
[347775266,1736099440555,-500.0,8.862e-05,2]
[347775267,1736099440564,-511.01,8.863e-05,2]
[347775268,1736099440573,-746.88,8.863e-05,2]
[347775269,1736099440582,-500.0,8.863e-05,2]
[347775270,1736099440591,-500.0,8.863e-05,2]
[347775271,1736099440600,-1325.71,8.863e-05,2]
[347775272,1736099440609,-682.39,8.863e-05,2]
[347775273,1736099440619,-2092.54,8.863e-05,2]
[347775274,1736099440628,-1423.34,8.863e-05,2]
[347775275,1736099440637,-1862.91,8.863e-05,2]
[347775276,1736099440647,-500.0,8.863e-05,2]
[347775277,1736099440658,-500.0,8.863e-05,2]
[347775278,1736099440667,-1392.82,8.863e-05,2]
[347775279,1736099440677,-589.63,8.863e-05,2]
[347775280,1736099440686,-549.22,8.863e-05,2]
[347775281,1736099440695,-1073.55,8.863e-05,2]
[347775282,1736099440706,-500.0,8.863e-05,2]
[347775283,1736099440715,-605.81,8.863e-05,2]
[347775284,1736099440724,-1177.46,8.863e-05,2]
[347775285,1736099440733,-641.24,8.863e-05,2]
[347775286,1736099440743,-928.96,8.863e-05,2]
[347775287,1736099440752,-688.04,8.863e-05,2]
[347775288,1736099440761,-500.0,8.863e-05,2]
[347775289,1736099440770,-527.35,8.863e-05,2]
[347775290,1736099440779,-721.42,8.863e-05,2]
[347775291,1736099440789,-721.42,8.863e-05,2]
[347775293,1736099440798,-730.88,8.863e-05,2]
[347775295,1736099440807,-1077.7,8.863e-05,2]
[347775297,1736099440815,-571.01,8.863e-05,2]
[347775299,1736099440825,-500.0,8.863e-05,2]
[347775301,1736099440834,-2636.1635,8.936e-05,2]
[347775302,1736099440843,-2500.0,8.94e-05,2]
[347775304,1736099440852,-150.0,9e-05,2]
[347775306,1736099440861,-150.0,9e-05,2]
[347775308,1736099440870,-150.0,9e-05,2]
[347775309,1736099440878,-500.0,9.04e-05,2]
[347775310,1736099440887,-500.0,9.04e-05,2]
[347775311,1736099440896,-1081.5,9.04e-05,2]
[347775313,1736099440905,-1059.04,9.04e-05,2]
[347775315,1736099440914,-1107.79,9.04e-05,2]
[347775316,1736099440924,-2621.03,9.04e-05,2]
[347775317,1736099440933,-500.0,9.04e-05,2]
[347775318,1736099440942,-254.49779489,9.04e-05,2]
[347775319,1736099440960,-245.50220511,9.04e-05,2]
[347775320,1736099440970,-616.85,9.04e-05,2]
[347775321,1736099440980,-1460.73,9.04e-05,2]
[347775322,1736099440990,-452.85780254,9.04e-05,2]
[347775323,1736099441006,-47.14219746,9.04e-05,2]
[347775324,1736099441015,-345.31290454,9.04e-05,2]
[347775338,1736099443356,-190.49,8.657e-05,2]
[347775340,1736099443365,-185.61709546,9.04e-05,2]
[347775342,1736099443374,-711.48,9.04e-05,2]
[347775344,1736099443383,-668.0,9.04e-05,2]
[347775346,1736099443392,-849.33,9.04e-05,2]
[347775348,1736099443403,-500.0,9.04e-05,2]
[347775349,1736099443412,-500.0,9.04e-05,2]
[347775351,1736099443421,-1007.94,9.04e-05,2]
[347775353,1736099443430,-1101.56,9.04e-05,2]
[347775355,1736099443439,-500.0,9.135e-05,2]
[347775356,1736099443448,-500.0,9.135e-05,2]
[347775357,1736099443458,-500.0,9.135e-05,2]
[347775358,1736099443470,-500.0,9.135e-05,2]
[347775359,1736099443478,-500.0,9.135e-05,2]
[347775360,1736099443487,-500.0,9.135e-05,2]
[347775361,1736099443496,-500.0,9.135e-05,2]
[347775362,1736099443505,-562.09,9.135e-05,2]
[347775363,1736099443514,-500.0,9.135e-05,2]
[347775364,1736099443523,-500.0,9.135e-05,2]
[347775365,1736099443532,-500.0,9.135e-05,2]
[347775366,1736099443541,-500.0,9.135e-05,2]
[347775367,1736099443550,-500.0,9.135e-05,2]
[347775368,1736099443559,-500.0,9.135e-05,2]
[347775369,1736099443568,-500.0,9.135e-05,2]
[347775370,1736099443577,-500.0,9.135e-05,2]
[347775371,1736099443586,-500.0,9.135e-05,2]
[347775372,1736099443595,-510.43,9.135e-05,2]
[347775373,1736099443604,-500.0,9.135e-05,2]
[347775374,1736099443613,-500.0,9.135e-05,2]
[347775375,1736099443623,-500.0,9.135e-05,2]
[347775376,1736099443632,-500.0,9.135e-05,2]
[347775377,1736099443641,-500.0,9.135e-05,2]
[347775378,1736099443651,-500.0,9.135e-05,2]
[347775379,1736099443661,-500.0,9.135e-05,2]
[347775380,1736099443671,-518.82,9.135e-05,2]
[347775381,1736099443680,-500.0,9.135e-05,2]
[347775382,1736099443690,-578.326912,9.135e-05,2]
[347775383,1736099443699,-500.0,9.135e-05,2]
[347775384,1736099443708,-500.0,9.135e-05,2]
[347775385,1736099443717,-1184.1,9.135e-05,2]
[347775386,1736099443726,-500.0,9.135e-05,2]
[347775387,1736099443736,-500.0,9.135e-05,2]
[347775388,1736099443745,-444.900991,9.135e-05,2]
[347775390,1736099443755,-500.0,9.135e-05,2]
[347775392,1736099443764,-164.03351,9.135e-05,2]
[347775394,1736099443774,-501.13,9.135e-05,2]
[347775396,1736099443783,-500.0,9.135e-05,2]
[347775398,1736099443792,-500.0,9.135e-05,2]
[347775400,1736099443801,-500.0,9.135e-05,2]
[347775401,1736099443811,-998.54,9.135e-05,2]
[347775402,1736099443820,-500.0,9.135e-05,2]
[347775404,1736099443830,-500.0,9.135e-05,2]
[347775406,1736099443840,-500.0,9.135e-05,2]
[347775408,1736099443849,-500.0,9.135e-05,2]
[347775410,1736099443859,-631.11,9.135e-05,2]
[347775412,1736099443868,-500.0,9.135e-05,2]
[347775413,1736099443878,-559.66,9.135e-05,2]
[347775414,1736099443887,-500.0,9.135e-05,2]
[347775415,1736099443898,-621.04,9.135e-05,2]
[347775416,1736099443908,-500.0,9.135e-05,2]
[347775417,1736099443918,-1087.51,9.135e-05,2]
[347775418,1736099443928,-500.0,9.135e-05,2]
[347775419,1736099443937,-420.02857049,9.135e-05,2]
[347775420,1736099443947,-1101.2,9.135e-05,2]
[347775421,1736099443956,-1190.31,9.135e-05,2]
[347775422,1736099443966,-500.0,9.135e-05,2]
[347775423,1736099443976,-500.0,9.135e-05,2]
[347775424,1736099443985,-500.0,9.135e-05,2]
[347775425,1736099443994,-500.0,9.135e-05,2]
[347775426,1736099444003,-500.0,9.135e-05,2]
[347775427,1736099444013,-1054.86,9.135e-05,2]
[347775428,1736099444022,-500.0,9.135e-05,2]
[347775429,1736099444031,-500.0,9.135e-05,2]
[347775430,1736099444041,-500.0,9.135e-05,2]
[347775431,1736099444051,-593.36,9.135e-05,2]
[347775432,1736099444060,-500.0,9.135e-05,2]
[347775433,1736099444070,-717.49,9.135e-05,2]
[347775434,1736099444079,-500.0,9.135e-05,2]
[347775435,1736099444088,-500.0,9.135e-05,2]
[347775436,1736099444097,-1216.91,9.135e-05,2]
[347775437,1736099444107,-500.0,9.135e-05,2]
[347775438,1736099444116,-841.22,9.135e-05,2]
[347775439,1736099444126,-500.0,9.135e-05,2]
[347775440,1736099444135,-657.49,9.135e-05,2]
[347775441,1736099444144,-500.0,9.135e-05,2]
[347775442,1736099444153,-500.0,9.135e-05,2]
[347775443,1736099444162,-500.0,9.135e-05,2]
[347775444,1736099444171,-576.37,9.135e-05,2]
[347775445,1736099444180,-500.0,9.135e-05,2]
[347775446,1736099444189,-554.18,9.135e-05,2]
[347775447,1736099444199,-551.21,9.135e-05,2]
[347775448,1736099444208,-500.0,9.135e-05,2]
[347775449,1736099444217,-500.0,9.135e-05,2]
[347775450,1736099444227,-222.2,9.135e-05,2]
[347775451,1736099444235,-1542.66,9.135e-05,2]
[347775452,1736099444244,-1676.55,9.135e-05,2]
[347775453,1736099444254,-500.0,9.135e-05,2]
[347775454,1736099444263,-500.0,9.135e-05,2]
[347775455,1736099444272,-500.0,9.135e-05,2]
[347775456,1736099444281,-500.0,9.135e-05,2]
[347775457,1736099444291,-567.93,9.135e-05,2]
[347775458,1736099444300,-289.35342387,9.136e-05,2]
[347775459,1736099444310,-500.0,9.136e-05,2]
[347775460,1736099444531,-500.0,9.136e-05,2]
[347775461,1736099444542,-500.0,9.136e-05,2]
[347775462,1736099444551,-500.0,9.136e-05,2]
[347775463,1736099444560,-500.0,9.136e-05,2]
[347775464,1736099444569,-500.0,9.136e-05,2]
[347775465,1736099444579,-500.0,9.136e-05,2]
[347775466,1736099444588,-500.0,9.136e-05,2]
[347775467,1736099444597,-260.70136274,9.136e-05,2]
[347775468,1736099444606,-500.0,9.136e-05,2]
[347775469,1736099444615,-500.0,9.136e-05,2]
[347775470,1736099444624,-500.0,9.136e-05,2]
[347775471,1736099444633,-500.0,9.136e-05,2]
[347775472,1736099444642,-500.0,9.136e-05,2]
[347775473,1736099444651,-500.0,9.136e-05,2]
[347775474,1736099444659,-500.0,9.136e-05,2]
[347775475,1736099444668,-500.0,9.136e-05,2]
[347775476,1736099444676,-500.0,9.136e-05,2]
[347775477,1736099444685,-500.0,9.136e-05,2]
[347775478,1736099444693,-500.0,9.136e-05,2]
[347775479,1736099444702,-500.0,9.136e-05,2]
[347775480,1736099444711,-500.0,9.136e-05,2]
[347775481,1736099444720,-525.26,9.136e-05,2]
[347775482,1736099444728,-500.0,9.136e-05,2]
[347775483,1736099444737,-500.0,9.136e-05,2]
[347775484,1736099444747,-500.0,9.136e-05,2]
[347775485,1736099444755,-589.98,9.136e-05,2]
[347775486,1736099444764,-500.0,9.136e-05,2]
[347775487,1736099444774,-500.0,9.136e-05,2]
[347775488,1736099444783,-500.0,9.136e-05,2]
[347775489,1736099444792,-500.0,9.136e-05,2]
[347775490,1736099444801,-500.0,9.136e-05,2]
[347775491,1736099444810,-500.0,9.136e-05,2]
[347775492,1736099444819,-500.0,9.136e-05,2]
[347775493,1736099444828,-500.0,9.136e-05,2]
[347775494,1736099444838,-500.0,9.136e-05,2]
[347775495,1736099444847,-500.0,9.136e-05,2]
[347775496,1736099444856,-500.0,9.136e-05,2]
[347775497,1736099444866,-500.0,9.136e-05,2]
[347775498,1736099444875,-521.58523678,9.136e-05,2]
[347775499,1736099444883,-500.0,9.136e-05,2]
[347775500,1736099444892,-500.0,9.136e-05,2]
[347775501,1736099444901,-500.0,9.136e-05,2]
[347775502,1736099444910,-500.0,9.136e-05,2]
[347775503,1736099444919,-500.0,9.136e-05,2]
[347775504,1736099444928,-500.0,9.136e-05,2]
[347775505,1736099444938,-500.0,9.136e-05,2]
[347775506,1736099444947,-500.0,9.136e-05,2]
[347775507,1736099444956,-500.0,9.136e-05,2]
[347775508,1736099444965,-500.0,9.136e-05,2]
[347775509,1736099444975,-500.0,9.136e-05,2]
[347775510,1736099444984,-500.0,9.136e-05,2]
[347775511,1736099444993,-221.54667451,9.136e-05,2]
[347775512,1736099445003,-500.0,9.136e-05,2]
[347775513,1736099445012,-500.0,9.136e-05,2]
[347775514,1736099445021,-500.0,9.136e-05,2]
[347775515,1736099445030,-1456.24,9.136e-05,2]
[347775516,1736099445039,-500.0,9.136e-05,2]
[347775517,1736099445048,-500.0,9.136e-05,2]
[347775518,1736099445056,-641.01,9.136e-05,2]
[347775519,1736099445065,-500.0,9.136e-05,2]
[347775520,1736099445074,-500.0,9.136e-05,2]
[347775521,1736099445083,-500.0,9.136e-05,2]
[347775522,1736099445091,-500.0,9.136e-05,2]
[347775523,1736099445100,-500.0,9.136e-05,2]
[347775524,1736099445109,-500.0,9.136e-05,2]
[347775525,1736099445118,-500.0,9.136e-05,2]
[347775526,1736099445127,-500.0,9.136e-05,2]
[347775527,1736099445137,-500.0,9.136e-05,2]
[347775528,1736099445147,-500.0,9.136e-05,2]
[347775529,1736099445156,-500.0,9.136e-05,2]
[347775530,1736099445166,-500.0,9.136e-05,2]
[347775531,1736099445175,-500.0,9.136e-05,2]
[347775532,1736099445184,-500.0,9.136e-05,2]
[347775533,1736099445193,-500.0,9.136e-05,2]
[347775534,1736099445202,-500.0,9.136e-05,2]
[347775535,1736099445211,-500.0,9.136e-05,2]
[347775536,1736099445220,-500.0,9.136e-05,2]
[347775537,1736099445229,-500.0,9.136e-05,2]
[347775538,1736099445239,-500.0,9.136e-05,2]
[347775539,1736099445248,-500.0,9.136e-05,2]
[347775540,1736099445258,-500.0,9.136e-05,2]
[347775541,1736099445267,-511.01,9.137e-05,2]
[347775542,1736099445276,-746.88,9.137e-05,2]
[347775543,1736099445285,-500.0,9.137e-05,2]
[347775544,1736099445295,-500.0,9.137e-05,2]
[347775545,1736099445304,-1325.71,9.137e-05,2]
[347775546,1736099445313,-682.39,9.137e-05,2]
[347775547,1736099445323,-2092.54,9.137e-05,2]
[347775548,1736099445332,-1423.34,9.137e-05,2]
[347775549,1736099445341,-1862.91,9.137e-05,2]
[347775550,1736099445351,-500.0,9.137e-05,2]
[347775551,1736099445360,-500.0,9.137e-05,2]
[347775552,1736099445370,-1392.82,9.137e-05,2]
[347775553,1736099445379,-589.63,9.137e-05,2]
[347775554,1736099445388,-549.22,9.137e-05,2]
[347775555,1736099445399,-1073.55,9.137e-05,2]
[347775556,1736099445410,-500.0,9.137e-05,2]